[Event "WJCC U20 Girls 2019"]
[Site "New Delhi"]
[Date "2019.10.17"]
[Round "3.46"]
[White "Abdala Cancino, Patricia Anastas"]
[Black "Figueroa Bernal, Julia Dennis"]
[Result "1-0"]
[ECO "B20"]
[WhiteElo "1608"]
[BlackElo "1777"]
[Annotator "NA"]
[PlyCount "115"]
[EventDate "2019.10.15"]
[EventType "swiss"]
[EventCountry "IND"]
[SourceTitle "playchess.com"]
[Source "ChessBase"]
[SourceQuality "1"]
[TimeControl "40/5400+30:1800+30"]

1. e4 {[%emt 0:01:22]} c5 {[%emt 0:00:00]} 2. d3 {[%emt 0:03:02]} e6 {[%emt 0:00:00]} 3. c3 {[%emt 0:00:36]} d5 {[%emt 0:00:52]} 4. Nd2 {[%emt 0:00:22]} Nc6 {[%emt 0:00:15]} 5. Ngf3 {[%emt 0:00:17]} Nf6 {[%emt 0:00:18]} 6. Qe2 {[%emt 0:00:24]} Be7 {[%emt 0:00:14]} 7. g3 {[%emt 0:00:15]} b6 {[%emt 0:00:27]} 8. Bg2 {[%emt 0:00:12]} Bb7 {[%emt 0:00:09]} 9. O-O {[%emt 0:00:29]} Qc7 {[%emt 0:00:31]} 10. Re1 {[%emt 0:00:20]} h6 {[%emt 0:03:50]} 11. Nf1 {[%emt 0:01:54]} g5 {[%emt 0:05:35]} 12. h4 {[%emt 0:01:57]} gxh4 {[%emt 0:01:32]} 13. Nxh4 {[%emt 0:00:18]} O-O-O {[%emt 0:01:36]} 14. Nh2 {[%emt 0:01:32]} Ba6 {[%emt 0:07:03]} 15. e5 {[%emt 0:01:16]} Nd7 {[%emt 0:00:17]} 16. N2f3 {[%emt 0:00:17]} Rdg8 {[%emt 0:15:23]} 17. Bf4 {[%emt 0:03:49]} Rg7 {[%emt 0:08:39]} 18. Qe3 {[%emt 0:02:38]} Bg5 {[%emt 0:17:35]} 19. d4 {[%emt 0:05:32]} Qd8 {[%emt 0:02:49]} 20. Rac1 {[%emt 0:01:23]} c4 {[%emt 0:03:21]} 21. Kh2 {[%emt 0:03:14]} Ne7 {[%emt 0:07:13]} 22. Nxg5 {[%emt 0:09:38]} Nf5 {[%emt 0:05:41]} 23. Nxe6 {[%emt 0:02:22]} Nxe3 {[%emt 0:10:18]} 24. Nxd8 {[%emt 0:00:28]} Nxg2 {[%emt 0:00:11]} 25. Kxg2 {[%emt 0:01:03]} Kxd8 {[%emt 0:01:08]} 26. Nf5 {[%emt 0:00:27]} Rg6 {[%emt 0:00:55]} 27. Rh1 {[%emt 0:02:39]} h5 {[%emt 0:00:39]} 28. Rh2 {[%emt 0:02:22]} Nf8 {[%emt 0:05:01]} 29. Rch1 {[%emt 0:00:41]} Ne6 {[%emt 0:00:21]} 30. Bc1 {[%emt 0:00:33]} Ng7 {[%emt 0:00:43]} 31. Nxg7 {[%emt 0:00:21]} Rxg7 {[%emt 0:00:05]} 32. Rxh5 {[%emt 0:00:05]} Rhg8 {[%emt 0:00:15]} 33. Rh8 {[%emt 0:00:28]} Bc8 {[%emt 0:00:23]} 34. Rxg8+ {[%emt 0:02:12]} Rxg8 {[%emt 0:00:07]} 35. Rh5 {[%emt 0:00:24]} b5 {[%emt 0:02:21]} 36. Bg5+ {[%emt 0:00:35]} Ke8 {[%emt 0:00:59]} 37. Bf6 {[%emt 0:00:18]} Bg4 {[%emt 0:01:07]} 38. Rg5 {[%emt 0:00:55]} Rxg5 {[%emt 0:00:06]} 39. Bxg5 {[%emt 0:00:06]} Bd1 {[%emt 0:00:18]} 40. Kh3 {[%emt 0:04:43]} Kf8 {[%emt 0:00:19]} 41. Bf6 {[%emt 0:30:10]} Kg8 {[%emt 0:30:10]} 42. Kh4 {[%emt 0:00:27]} Kh7 {[%emt 0:00:21]} 43. f4 {[%emt 0:01:38]} Kg6 {[%emt 0:00:36]} 44. g4 {[%emt 0:00:21]} Bc2 {[%emt 0:00:09]} 45. f5+ {[%emt 0:00:24]} Kh7 {[%emt 0:00:12]} 46. Kg5 {[%emt 0:00:33]} Kg8 {[%emt 0:00:14]} 47. e6 {[%emt 0:01:33]} fxe6 {[%emt 0:01:11]} 48. fxe6 {[%emt 0:00:23]} Kf8 {[%emt 0:00:23]} 49. Kf4 {[%emt 0:01:07]} Ke8 {[%emt 0:00:37]} 50. Ke5 {[%emt 0:00:22]} Be4 {[%emt 0:00:41]} 51. Bh4 {[%emt 0:00:35]} Bf3 {[%emt 0:00:52]} 52. g5 {[%emt 0:00:17]} Be4 {[%emt 0:00:37]} 53. Kf6 {[%emt 0:00:11]} Bh7 {[%emt 0:00:15]} 54. g6 {[%emt 0:00:57]} Bg8 {[%emt 0:00:08]} 55. Ke5 {[%emt 0:00:29]} a6 {[%emt 0:00:48]} 56. Bf6 {[%emt 0:00:08]} Kf8 {[%emt 0:00:50]} 57. Kxd5 {[%emt 0:00:22]} Ke8 {[%emt 0:00:15]} 58. Ke5 1-0

[Event "WJCC U20 Girls 2019"]
[Site "New Delhi"]
[Date "2019.10.17"]
[Round "3.47"]
[White "Djuric, Anja"]
[Black "Rathi Dhanashree"]
[Result "1-0"]
[ECO "B22"]
[WhiteElo "1493"]
[BlackElo "1692"]
[Annotator "NA"]
[PlyCount "103"]
[EventDate "2019.10.15"]
[EventType "swiss"]
[EventCountry "IND"]
[SourceTitle "playchess.com"]
[Source "ChessBase"]
[SourceQuality "1"]
[TimeControl "40/5400+30:1800+30"]

1. e4 {[%emt 0:00:00]} c5 {[%emt 0:00:00]} 2. c3 {[%emt 0:00:00]} Nf6 {[%emt 0:00:08]} 3. e5 {[%emt 0:00:36]} Nd5 {[%emt 0:00:26]} 4. Bc4 {[%emt 0:00:56]} Qc7 {[%emt 0:04:03]} 5. Nf3 {[%emt 0:01:22]} Nb6 {[%emt 0:01:45]} 6. Bb3 {[%emt 0:01:31]} c4 {[%emt 0:02:21]} 7. Bc2 {[%emt 0:00:10]} Nc6 {[%emt 0:00:10]} 8. Qe2 {[%emt 0:01:46]} e6 {[%emt 0:02:46]} 9. O-O {[%emt 0:01:44]} a6 {[%emt 0:01:57]} 10. Re1 {[%emt 0:03:46]} d5 {[%emt 0:03:55]} 11. exd6 {[%emt 0:01:24]} Bxd6 {[%emt 0:00:14]} 12. d3 {[%emt 0:01:30]} cxd3 {[%emt 0:00:45]} 13. Qxd3 {[%emt 0:01:02]} Ne5 {[%emt 0:04:04]} 14. Nxe5 {[%emt 0:00:58]} Bxe5 {[%emt 0:00:10]} 15. h3 {[%emt 0:00:08]} Bd7 {[%emt 0:01:24]} 16. Be3 {[%emt 0:01:21]} Nd5 {[%emt 0:04:14]} 17. Bd4 {[%emt 0:04:10]} Bf6 {[%emt 0:15:07]} 18. Bxf6 {[%emt 0:05:21]} Nxf6 {[%emt 0:00:17]} 19. Nd2 {[%emt 0:01:38]} Bc6 {[%emt 0:01:53]} 20. Nf3 {[%emt 0:03:16]} Rd8 {[%emt 0:09:51]} 21. Qe3 {[%emt 0:01:17]} O-O {[%emt 0:03:52]} 22. Rad1 {[%emt 0:01:46]} Nd5 {[%emt 0:06:44]} 23. Qe4 {[%emt 0:05:42]} g6 {[%emt 0:03:48]} 24. Qh4 {[%emt 0:02:18]} Kg7 {[%emt 0:02:08]} 25. Ng5 {[%emt 0:01:36]} h6 {[%emt 0:01:20]} 26. Ne4 {[%emt 0:00:52]} Qf4 {[%emt 0:03:44]} 27. Qxf4 {[%emt 0:01:21]} Nxf4 {[%emt 0:00:06]} 28. Kh2 {[%emt 0:01:14]} Rxd1 {[%emt 0:08:53]} 29. Rxd1 {[%emt 0:00:41]} f5 {[%emt 0:02:08]} 30. Nc5 {[%emt 0:01:29]} Rc8 {[%emt 0:03:18]} 31. g3 {[%emt 0:01:46]} Bd5 {[%emt 0:03:14]} 32. Nxb7 {[%emt 0:02:33]} Bxb7 {[%emt 0:05:13]} 33. gxf4 {[%emt 0:00:27]} Bd5 {[%emt 0:00:06]} 34. a3 {[%emt 0:00:24]} Rc4 {[%emt 0:00:43]} 35. Kg3 {[%emt 0:00:52]} h5 {[%emt 0:01:11]} 36. Rd4 {[%emt 0:06:05]} Rxd4 {[%emt 0:01:10]} 37. cxd4 {[%emt 0:00:06]} a5 {[%emt 0:00:01]} 38. b4 {[%emt 0:00:40]} axb4 {[%emt 0:01:49]} 39. axb4 {[%emt 0:00:06]} Kf6 {[%emt 0:00:22]} 40. b5 {[%emt 0:01:41]} Ke7 {[%emt 0:02:26]} 41. Kh4 {[%emt 0:30:18]} Bg2 {[%emt 0:30:52]} 42. Ba4 {[%emt 0:05:07]} Kd8 {[%emt 0:00:57]} 43. b6 {[%emt 0:00:43]} Kc8 {[%emt 0:00:25]} 44. Be8 {[%emt 0:00:53]} Kb7 {[%emt 0:00:40]} 45. Bxg6 {[%emt 0:00:11]} Kxb6 {[%emt 0:00:03]} 46. Bxh5 {[%emt 0:00:10]} Kb5 {[%emt 0:00:41]} 47. Kg3 {[%emt 0:00:19]} Bd5 {[%emt 0:01:04]} 48. Bf7 {[%emt 0:00:23]} Kc4 {[%emt 0:00:21]} 49. h4 {[%emt 0:00:07]} Kxd4 {[%emt 0:01:02]} 50. h5 {[%emt 0:00:02]} Be4 {[%emt 0:00:28]} 51. h6 {[%emt 0:00:21]} e5 {[%emt 0:00:15]} 52. h7 {[%emt 0:00:16]} 1-0

[Event "WJCC U20 Girls 2019"]
[Site "New Delhi"]
[Date "2019.10.17"]
[Round "4.3"]
[White "Shuvalova, Polina"]
[Black "Alinasab, Mobina"]
[Result "1/2-1/2"]
[ECO "B52"]
[WhiteElo "2412"]
[BlackElo "2239"]
[Annotator "NA"]
[PlyCount "69"]
[EventDate "2019.10.15"]
[EventType "swiss"]
[EventCountry "IND"]
[SourceTitle "playchess.com"]
[Source "ChessBase"]
[SourceQuality "1"]
[TimeControl "40/5400+30:1800+30"]

1. e4 {[%emt 0:00:00]} c5 {[%emt 0:00:00]} 2. Nf3 {[%emt 0:00:00]} d6 {[%emt 0:00:00]} 3. Bb5+ {[%emt 0:00:00]} Bd7 {[%emt 0:00:00]} 4. Bxd7+ {[%emt 0:00:01]} Qxd7 {[%emt 0:00:00]} 5. c4 {[%emt 0:00:10]} e5 {[%emt 0:00:00]} 6. d3 {[%emt 0:00:52]} Nc6 {[%emt 0:00:07]} 7. Nc3 {[%emt 0:00:20]} g6 {[%emt 0:00:15]} 8. h4 {[%emt 0:05:37]} h5 {[%emt 0:12:15]} 9. Bg5 {[%emt 0:03:16]} Bg7 {[%emt 0:02:24]} 10. Nd5 {[%emt 0:06:28]} Nce7 {[%emt 0:06:19]} 11. Nxe7 {[%emt 0:02:18]} Nxe7 {[%emt 0:00:10]} 12. Nd2 {[%emt 0:00:15]} Nc6 {[%emt 0:09:26]} (12... f6 $5 13. Be3 $8 Kf7 $11) 13. Nb1 $11 {[%emt 0:04:57]} Qg4 {[%emt 0:17:28]} 14. O-O {[%emt 0:05:31]} Qxd1 {[%emt 0:00:30]} 15. Rxd1 {[%emt 0:00:02]} Nd4 {[%emt 0:01:13]} 16. Nc3 {[%emt 0:01:10]} f6 {[%emt 0:05:45]} 17. Bd2 {[%emt 0:00:31]} Bh6 {[%emt 0:02:17]} 18. Bxh6 {[%emt 0:04:51]} Rxh6 {[%emt 0:00:16]} 19. f4 {[%emt 0:02:52]} exf4 {[%emt 0:02:53]} 20. Nd5 {[%emt 0:00:09]} Kf7 {[%emt 0:00:27]} 21. Nxf4 {[%emt 0:00:37]} g5 {[%emt 0:01:43]} 22. Nd5 {[%emt 0:04:29]} gxh4 {[%emt 0:01:56]} 23. Kh2 {[%emt 0:01:18]} Rg8 {[%emt 0:00:30]} 24. Rd2 {[%emt 0:01:23]} Rg3 {[%emt 0:08:17]} 25. Rf1 {[%emt 0:02:14]} Nc6 {[%emt 0:02:20]} 26. Rf4 {[%emt 0:11:33]} Ne5 {[%emt 0:01:41]} 27. Rxh4 {[%emt 0:01:04]} Rxd3 {[%emt 0:01:12]} 28. Rxd3 {[%emt 0:00:16]} Nxd3 {[%emt 0:00:01]} 29. b3 {[%emt 0:00:08]} Ne5 {[%emt 0:07:05]} 30. Rf4 {[%emt 0:07:12]} Ke6 {[%emt 0:01:31]} 31. Nc7+ {[%emt 0:05:27]} Kd7 {[%emt 0:00:07]} 32. Nd5 {[%emt 0:00:04]} Ke6 {[%emt 0:00:28]} 33. Nc7+ {[%emt 0:01:03]} Kd7 {[%emt 0:00:05]} 34. Nd5 {[%emt 0:00:05]} Ke6 {[%emt 0:00:05]} 35. Nc7+ {[%emt 0:00:50]} 1/2-1/2

[Event "WJCC U20 Girls 2019"]
[Site "New Delhi"]
[Date "2019.10.17"]
[Round "4.4"]
[White "Solozhenkina, Elizaveta"]
[Black "Vaishali R"]
[Result "1/2-1/2"]
[ECO "B69"]
[WhiteElo "2283"]
[BlackElo "2385"]
[Annotator "NA"]
[PlyCount "88"]
[EventDate "2019.10.15"]
[EventType "swiss"]
[EventCountry "IND"]
[SourceTitle "playchess.com"]
[Source "ChessBase"]
[SourceQuality "1"]
[TimeControl "40/5400+30:1800+30"]

1. e4 {[%emt 0:00:00]} c5 {[%emt 0:00:16]} 2. Nf3 {[%emt 0:00:00]} d6 {[%emt 0:00:37]} 3. d4 {[%emt 0:00:46]} cxd4 {[%emt 0:00:06]} 4. Nxd4 {[%emt 0:00:07]} Nf6 {[%emt 0:00:03]} 5. Nc3 {[%emt 0:02:54]} Nc6 {[%emt 0:00:06]} 6. Bg5 {[%emt 0:00:26]} e6 {[%emt 0:00:08]} 7. Qd2 {[%emt 0:00:42]} a6 {[%emt 0:00:06]} 8. O-O-O {[%emt 0:03:05]} Be7 {[%emt 0:00:06]} 9. f4 {[%emt 0:01:02]} Bd7 {[%emt 0:00:32]} 10. Nf3 {[%emt 0:01:24]} b5 {[%emt 0:00:24]} 11. Bxf6 {[%emt 0:00:44]} gxf6 {[%emt 0:00:09]} 12. Kb1 {[%emt 0:00:15]} Qb6 {[%emt 0:00:47]} 13. f5 {[%emt 0:00:08]} O-O-O {[%emt 0:03:13]} 14. g3 {[%emt 0:08:22]} Kb8 {[%emt 0:01:15]} 15. fxe6 {[%emt 0:02:43]} fxe6 {[%emt 0:01:41]} 16. Bh3 {[%emt 0:00:34]} Rhe8 {[%emt 0:02:25]} 17. Qh6 {[%emt 0:03:23]} Bc8 {[%emt 0:30:36]} 18. Rhe1 {[%emt 0:12:22]} Qc5 {[%emt 0:11:03]} 19. Ne2 {[%emt 0:11:21]} d5 {[%emt 0:22:29]} 20. exd5 {[%emt 0:06:32]} Rxd5 {[%emt 0:00:31]} 21. Qxh7 {[%emt 0:11:04]} f5 {[%emt 0:09:01]} 22. Qg6 {[%emt 0:14:34]} Red8 {[%emt 0:04:55]} 23. Rxd5 {[%emt 0:00:55]} Qxd5 {[%emt 0:00:35]} 24. Bg2 {[%emt 0:02:14]} Ne5 {[%emt 0:04:02]} 25. Nxe5 {[%emt 0:01:20]} Qxe5 {[%emt 0:00:17]} 26. Qh5 {[%emt 0:01:14]} Bf6 {[%emt 0:06:00]} 27. c3 {[%emt 0:00:05]} Qe3 {[%emt 0:01:17]} 28. Qf3 {[%emt 0:03:59]} Qxf3 {[%emt 0:00:03]} 29. Bxf3 {[%emt 0:00:05]} e5 {[%emt 0:00:05]} 30. Kc2 {[%emt 0:04:01]} Rh8 {[%emt 0:01:28]} 31. h4 {[%emt 0:02:26]} e4 {[%emt 0:00:39]} 32. Bg2 {[%emt 0:00:45]} Rg8 {[%emt 0:00:26]} 33. Bh3 {[%emt 0:00:49]} Be6 {[%emt 0:00:34]} 34. Rf1 {[%emt 0:05:10]} Bc4 {[%emt 0:00:29]} 35. Kd1 {[%emt 0:01:21]} Rd8+ {[%emt 0:00:33]} 36. Ke1 {[%emt 0:00:00]} e3 {[%emt 0:00:28]} 37. Rf3 {[%emt 0:01:02]} Rd2 {[%emt 0:00:29]} 38. Rxe3 {[%emt 0:00:13]} Rxb2 {[%emt 0:00:08]} 39. Bxf5 {[%emt 0:00:24]} Rxa2 {[%emt 0:00:19]} 40. Be6 {[%emt 0:00:53]} Rxe2+ {[%emt 0:01:05]} 41. Rxe2 {[%emt 0:01:59]} Bxc3+ {[%emt 0:01:50]} 42. Kd1 {[%emt 0:01:23]} Bxe2+ {[%emt 0:00:05]} 43. Kxe2 {[%emt 0:00:02]} Kc7 {[%emt 0:00:26]} 44. g4 {[%emt 0:07:13]} Kd6 {[%emt 0:01:29]} 1/2-1/2

[Event "WJCC U20 Girls 2019"]
[Site "New Delhi"]
[Date "2019.10.17"]
[Round "4.5"]
[White "Assaubayeva, Bibisara"]
[Black "Protopopova, Anastasiya"]
[Result "1-0"]
[ECO "D12"]
[WhiteElo "2381"]
[BlackElo "2263"]
[Annotator "NA"]
[PlyCount "96"]
[EventDate "2019.10.15"]
[EventType "swiss"]
[EventCountry "IND"]
[SourceTitle "playchess.com"]
[Source "ChessBase"]
[SourceQuality "1"]
[TimeControl "40/5400+30:1800+30"]

1. d4 {[%emt 0:00:00]} d5 {[%emt 0:00:00]} 2. c4 {[%emt 0:00:52]} c6 {[%emt 0:00:00]} 3. Nf3 {[%emt 0:00:18]} Nf6 {[%emt 0:00:00]} 4. e3 {[%emt 0:01:05]} Bf5 {[%emt 0:01:11]} 5. Nc3 {[%emt 0:00:28]} e6 {[%emt 0:00:08]} 6. Nh4 {[%emt 0:01:35]} Be4 {[%emt 0:00:08]} 7. f3 {[%emt 0:00:45]} Bg6 {[%emt 0:00:06]} 8. Qb3 {[%emt 0:00:22]} Qc7 {[%emt 0:00:36]} 9. Bd2 {[%emt 0:00:22]} Nbd7 {[%emt 0:01:42]} 10. cxd5 {[%emt 0:05:57]} exd5 {[%emt 0:07:24]} 11. Nxg6 {[%emt 0:06:19]} hxg6 {[%emt 0:00:07]} 12. O-O-O {[%emt 0:03:00]} O-O-O {[%emt 0:18:19]} 13. e4 {[%emt 0:10:32]} dxe4 {[%emt 0:04:01]} 14. fxe4 {[%emt 0:01:42]} Nb6 {[%emt 0:02:54]} 15. Bg5 {[%emt 0:03:04]} Rh5 {[%emt 0:08:21]} 16. h4 {[%emt 0:01:45]} Rxg5 {[%emt 0:04:15]} 17. hxg5 {[%emt 0:00:16]} Ng4 {[%emt 0:04:33]} 18. Rd2 {[%emt 0:10:55]} Qf4 {[%emt 0:13:59]} 19. Be2 {[%emt 0:05:14]} Be7 {[%emt 0:17:53]} 20. Rf1 {[%emt 0:02:24]} Qxg5 {[%emt 0:00:53]} 21. Qxf7 {[%emt 0:07:48]} Ne3 {[%emt 0:00:37]} 22. Qe6+ {[%emt 0:02:57]} Kb8 {[%emt 0:03:08]} 23. Rf7 {[%emt 0:03:37]} Bd6 {[%emt 0:01:12]} 24. Kb1 {[%emt 0:09:19]} Nxg2 {[%emt 0:05:23]} 25. Rd1 {[%emt 0:01:29]} Ne3 {[%emt 0:02:26]} 26. Rc1 {[%emt 0:01:42]} Bb4 {[%emt 0:02:29]} 27. Rxg7 {[%emt 0:03:23]} Rxd4 {[%emt 0:01:10]} 28. Rxg6 {[%emt 0:04:46]} Qe7 {[%emt 0:00:06]} 29. Rg8+ {[%emt 0:01:57]} Rd8 {[%emt 0:00:02]} 30. Qg6 {[%emt 0:05:01]} Nec4 {[%emt 0:01:19]} 31. Bxc4 {[%emt 0:01:32]} Nxc4 {[%emt 0:00:05]} 32. Rd1 {[%emt 0:01:27]} Rf8 {[%emt 0:00:59]} 33. Qg3+ {[%emt 0:01:30]} Bd6 {[%emt 0:00:30]} 34. Rxf8+ {[%emt 0:01:15]} Qxf8 {[%emt 0:00:02]} 35. Qd3 {[%emt 0:00:08]} b5 {[%emt 0:00:16]} 36. b3 {[%emt 0:02:15]} Na3+ {[%emt 0:00:15]} 37. Kb2 {[%emt 0:00:00]} Be5 {[%emt 0:01:26]} 38. Qd8+ {[%emt 0:01:19]} Qxd8 {[%emt 0:00:02]} 39. Rxd8+ {[%emt 0:00:01]} Kc7 {[%emt 0:00:01]} 40. Re8 {[%emt 0:00:27]} Bd4 {[%emt 0:00:00]} 41. Kxa3 {[%emt 0:03:31]} Bxc3 {[%emt 0:01:48]} 42. Re7+ {[%emt 0:05:12]} Kb6 {[%emt 0:03:14]} 43. b4 {[%emt 0:00:33]} a5 {[%emt 0:00:37]} 44. bxa5+ {[%emt 0:00:06]} Bxa5 {[%emt 0:00:58]} 45. e5 {[%emt 0:00:41]} Kc5 {[%emt 0:15:11]} 46. e6 {[%emt 0:03:49]} Kc4 {[%emt 0:04:07]} 47. Kb2 {[%emt 0:00:18]} Bc3+ {[%emt 0:01:25]} 48. Kc2 {[%emt 0:00:06]} Kd5 1-0

[Event "WJCC U20 Girls 2019"]
[Site "New Delhi"]
[Date "2019.10.17"]
[Round "4.6"]
[White "Vantika Agrawal"]
[Black "Divya Deshmukh"]
[Result "1/2-1/2"]
[ECO "E06"]
[WhiteElo "2283"]
[BlackElo "2358"]
[Annotator "NA"]
[PlyCount "98"]
[EventDate "2019.10.15"]
[EventType "swiss"]
[EventCountry "IND"]
[SourceTitle "playchess.com"]
[Source "ChessBase"]
[SourceQuality "1"]
[TimeControl "40/5400+30:1800+30"]

1. d4 {[%emt 0:00:00]} Nf6 {[%emt 0:00:00]} 2. c4 {[%emt 0:00:00]} e6 {[%emt 0:00:00]} 3. g3 {[%emt 0:00:03]} d5 {[%emt 0:00:00]} 4. Bg2 {[%emt 0:00:09]} Be7 {[%emt 0:00:00]} 5. Nf3 {[%emt 0:00:06]} O-O {[%emt 0:00:03]} 6. O-O {[%emt 0:00:08]} dxc4 {[%emt 0:00:03]} 7. Qc2 {[%emt 0:00:27]} c6 {[%emt 0:00:04]} 8. Qxc4 {[%emt 0:01:30]} b5 {[%emt 0:00:05]} 9. Qc2 {[%emt 0:00:28]} Bb7 {[%emt 0:00:07]} 10. Rd1 {[%emt 0:02:26]} Nbd7 {[%emt 0:00:40]} 11. Ne5 {[%emt 0:18:56]} Nxe5 {[%emt 0:07:23]} 12. dxe5 {[%emt 0:00:09]} Nd5 {[%emt 0:01:37]} 13. Nc3 {[%emt 0:11:46]} Qb6 {[%emt 0:05:46]} 14. Nxd5 {[%emt 0:02:48]} cxd5 {[%emt 0:01:07]} 15. Be3 {[%emt 0:00:21]} Qa5 {[%emt 0:00:46]} 16. Bd2 {[%emt 0:08:22]} Qb6 {[%emt 0:00:35]} 17. Be3 {[%emt 0:01:41]} Qa5 {[%emt 0:00:39]} 18. Bd2 {[%emt 0:01:05]} Qa6 {[%emt 0:02:18]} 19. Qb3 Bc5 {[%emt 0:04:34]} 20. e3 {[%emt 0:11:28]} Qb6 {[%emt 0:01:43]} 21. a4 {[%emt 0:05:46]} bxa4 {[%emt 0:02:09]} 22. Qxa4 {[%emt 0:00:10]} Rfc8 {[%emt 0:08:13]} 23. Ba5 {[%emt 0:08:15]} Qc6 {[%emt 0:00:58]} 24. Qxc6 {[%emt 0:00:15]} Bxc6 {[%emt 0:00:06]} 25. Bf1 {[%emt 0:05:55]} a6 {[%emt 0:14:05]} 26. Bc3 {[%emt 0:00:59]} Bb5 {[%emt 0:02:26]} 27. Bg2 {[%emt 0:01:09]} Rd8 {[%emt 0:05:06]} 28. Rdc1 {[%emt 0:00:45]} Bb6 {[%emt 0:02:29]} 29. Bf1 {[%emt 0:01:25]} h6 {[%emt 0:05:50]} 30. Ra3 {[%emt 0:02:12]} Rab8 {[%emt 0:01:45]} 31. Bxb5 {[%emt 0:05:44]} axb5 {[%emt 0:00:01]} 32. Rb3 {[%emt 0:00:52]} d4 {[%emt 0:04:13]} 33. exd4 {[%emt 0:01:55]} Bxd4 {[%emt 0:00:10]} 34. Bxd4 {[%emt 0:00:05]} Rxd4 {[%emt 0:00:02]} 35. Rc7 {[%emt 0:00:34]} Re4 {[%emt 0:05:12]} 36. Rf3 {[%emt 0:00:46]} Rf8 {[%emt 0:00:04]} 37. Rc5 {[%emt 0:02:01]} Rb4 {[%emt 0:08:32]} 38. b3 {[%emt 0:00:32]} Kh7 {[%emt 0:01:04]} 39. Kg2 {[%emt 0:05:26]} Kg6 {[%emt 0:00:54]} 40. h4 {[%emt 0:01:00]} h5 {[%emt 0:01:01]} 41. Kf1 {[%emt 0:09:27]} Ra8 {[%emt 0:17:54]} 42. Rc7 {[%emt 0:04:13]} f6 {[%emt 0:00:14]} 43. Re3 {[%emt 0:03:12]} Ra3 {[%emt 0:13:52]} 44. exf6 {[%emt 0:04:30]} gxf6 {[%emt 0:00:22]} 45. Rxe6 {[%emt 0:00:53]} Raxb3 {[%emt 0:00:06]} 46. Kg2 {[%emt 0:00:50]} Rc4 {[%emt 0:00:15]} 47. Rb7 {[%emt 0:03:26]} Rc5 {[%emt 0:01:05]} 48. Rbb6 {[%emt 0:03:46]} Rf5 {[%emt 0:00:10]} 49. f4 {[%emt 0:00:36]} Rb1 {[%emt 0:01:10]} 1/2-1/2

[Event "WJCC U20 Girls 2019"]
[Site "New Delhi"]
[Date "2019.10.17"]
[Round "4.8"]
[White "Rakshitta Ravi"]
[Black "Toshali, V."]
[Result "1-0"]
[ECO "A06"]
[WhiteElo "2310"]
[BlackElo "1868"]
[Annotator "NA"]
[PlyCount "57"]
[EventDate "2019.10.15"]
[EventType "swiss"]
[EventCountry "IND"]
[SourceTitle "playchess.com"]
[Source "ChessBase"]
[SourceQuality "1"]
[TimeControl "40/5400+30:1800+30"]

1. Nf3 {[%emt 0:00:00]} d5 {[%emt 0:00:00]} 2. g3 {[%emt 0:00:09]} c6 {[%emt 0:00:00]} 3. Bg2 {[%emt 0:00:05]} Bg4 {[%emt 0:00:00]} 4. O-O {[%emt 0:00:17]} e6 {[%emt 0:00:15]} 5. d3 {[%emt 0:00:17]} Nf6 {[%emt 0:00:09]} 6. h3 {[%emt 0:00:11]} Bh5 {[%emt 0:00:23]} 7. Qe1 {[%emt 0:01:11]} Be7 {[%emt 0:02:24]} 8. e4 {[%emt 0:02:13]} dxe4 {[%emt 0:00:30]} 9. dxe4 {[%emt 0:00:08]} Nbd7 {[%emt 0:11:38]} 10. b3 {[%emt 0:03:01]} O-O {[%emt 0:05:49]} 11. Bb2 {[%emt 0:01:40]} a5 {[%emt 0:02:33]} 12. a3 {[%emt 0:05:57]} Qc7 {[%emt 0:09:18]} 13. Nbd2 {[%emt 0:00:57]} Rfd8 {[%emt 0:10:19]} 14. Nh2 {[%emt 0:09:51]} Bg6 {[%emt 0:13:29]} 15. f4 {[%emt 0:05:14]} h6 {[%emt 0:00:32]} 16. Nhf3 {[%emt 0:05:39]} Bh7 {[%emt 0:03:31]} 17. Kh1 {[%emt 0:01:53]} Nc5 {[%emt 0:04:08]} 18. Ne5 {[%emt 0:00:30]} Ne8 {[%emt 0:02:52]} 19. Qe3 {[%emt 0:07:31]} Na6 {[%emt 0:06:37]} 20. Qe2 {[%emt 0:11:51]} Bf6 {[%emt 0:00:57]} 21. Bf3 {[%emt 0:01:26]} Nc5 {[%emt 0:03:51]} 22. Rad1 {[%emt 0:02:44]} Nd6 {[%emt 0:06:59]} 23. Bd4 {[%emt 0:03:45]} Nd7 24. Ba1 {[%emt 0:15:41]} Bxe5 {[%emt 0:10:37]} 25. fxe5 {[%emt 0:00:35]} Ne8 {[%emt 0:00:16]} 26. Nc4 {[%emt 0:01:18]} Nf8 {[%emt 0:00:55]} 27. Qf2 {[%emt 0:03:16]} Qe7 {[%emt 0:01:11]} 28. Bd4 {[%emt 0:01:42]} Bg6 {[%emt 0:02:32]} 29. Bc5 {[%emt 0:00:39]} 1-0